bitfinex-derivatives/quotes_SOLF0:USTF0_20250113
["timestamp","ask_amount","ask_price","bid_price","bid_amount"]
[1736799639153,16.5176855,177.68,177.64,2.8162]
[1736799641056,79.05689566,177.78,177.66,13.7020855]
[1736799641250,13.7020855,177.78,177.67,6.22]
[1736799641452,2.8143,177.76,177.72,2.8148]
[1736799641756,13.7020855,177.78,177.67,6.22]
[1736799641957,16.5160855,177.78,177.74,2.8145]
[1736799643057,1.6311,177.8,177.69,13.7020855]
[1736799643252,1.6311,177.8,177.67,6.22]
[1736799643253,3.2878,177.83,177.72,13.7020855]
[1736799643659,3.2878,177.83,177.73,1.6578]
[1736799643858,3.2878,177.83,177.74,6.22]
[1736799644060,13.7020855,177.81,177.76,2.8143]
[1736799644357,13.7020855,177.81,177.69,13.7020855]
[1736799644358,2.8142,177.77,177.69,13.7020855]
[1736799644559,13.7020855,177.78,177.7,2.8151]
[1736799644754,13.7020855,177.78,177.67,6.22]
[1736799645463,21.89772055,177.81,177.67,6.22]
[1736799646065,2.8142,177.77,177.72,2.8148]
[1736799646757,21.89772055,177.78,177.65,6.22]
[1736799646961,21.89772055,177.78,177.63,1.6551]
[1736799647264,21.89772055,177.75,177.64,6.22]
[1736799647460,21.89772055,177.78,177.64,6.22]
[1736799647854,1.695,177.8,177.64,6.22]
[1736799648067,1.695,177.8,177.66,21.89772055]
[1736799648268,2.8139,177.79,177.74,2.8145]
[1736799648959,2.814,177.78,177.74,2.8145]
[1736799649360,1.695,177.8,177.66,21.89772055]
[1736799649556,2.8144,177.76,177.72,2.8149]
[1736799649961,1.695,177.8,177.7,2.8151]
[1736799650270,1.695,177.8,177.66,6.22]
[1736799650271,21.89772055,177.78,177.66,6.22]
[1736799650464,21.89772055,177.78,177.7,2.8151]
[1736799650663,2.8145,177.75,177.66,6.22]
[1736799651064,2.8146,177.74,177.7,2.8152]
[1736799652264,2.8146,177.74,177.66,6.22]
[1736799652265,21.89772055,177.78,177.66,6.22]
[1736799653169,21.89772055,177.78,177.68,2.8155]
[1736799653363,21.89772055,177.78,177.66,6.22]
[1736799653665,2.8146,177.74,177.66,6.22]
[1736799654869,21.89772055,177.78,177.66,6.22]
[1736799655066,21.89772055,177.78,177.68,2.8155]
[1736799655467,21.89772055,177.78,177.66,6.22]
[1736799655671,21.89772055,177.75,177.66,6.22]
[1736799655871,3.4588,177.74,177.67,2.8157]
[1736799656065,2.8149,177.72,177.67,2.8157]
[1736799656261,3.4588,177.74,177.67,2.8157]
[1736799656473,3.4588,177.74,177.66,6.22]
[1736799656765,1.7292,177.74,177.66,6.22]
[1736799656973,21.89772055,177.78,177.66,6.22]
[1736799657270,2.8144,177.76,177.69,2.8153]
[1736799657468,2.8144,177.76,177.66,6.22]
[1736799657865,21.89772055,177.78,177.66,6.22]
[1736799658169,3.4084,177.79,177.66,28.11772055]
[1736799658572,2.8141,177.77,177.73,2.8147]
[1736799658869,3.4084,177.79,177.66,28.11772055]
[1736799659071,2.8144,177.76,177.66,28.11772055]
[1736799659867,2.814,177.78,177.74,2.8145]
[1736799660267,2.814,177.78,177.69,21.89772055]
[1736799660268,1.7292,177.79,177.69,21.89772055]
[1736799660472,2.814,177.78,177.74,2.8146]
[1736799661271,1.7292,177.79,177.66,6.22]
[1736799661272,2.8143,177.76,177.72,2.8148]
[1736799662372,2.8143,177.76,177.73,2.8147]
[1736799662877,2.8145,177.75,177.71,2.815]
[1736799663377,1.7292,177.79,177.66,28.11772055]
[1736799663574,2.8143,177.76,177.72,2.8148]
[1736799664272,1.7292,177.79,177.66,28.11772055]
[1736799664576,23.45502055,177.84,177.69,21.89772055]
[1736799664773,1.7054,177.83,177.7,1.5789]
[1736799664974,1.7054,177.83,177.75,2.8144]
[1736799665176,1.7054,177.83,177.7,1.5789]
[1736799666275,2.8141,177.77,177.74,2.8146]
[1736799666580,21.89772055,177.81,177.7,1.5789]
[1736799666767,2.8143,177.77,177.73,2.8147]
[1736799667170,1.7054,177.83,177.7,1.5789]
[1736799667369,2.8138,177.8,177.71,1.6775]
[1736799667774,2.8138,177.8,177.72,13.67910397]
[1736799667969,2.8138,177.8,177.76,2.8142]
[1736799668475,13.67910397,177.81,177.73,6.2]
[1736799668980,2.814,177.79,177.75,2.8144]
[1736799669179,1.7054,177.83,177.75,2.8144]
[1736799669875,2.8136,177.81,177.75,2.8144]
[1736799670178,1.7054,177.83,177.75,2.8144]
[1736799670675,2.814,177.79,177.75,2.8144]
[1736799671075,2.814,177.79,177.76,2.8142]
[1736799673577,1.7054,177.83,177.74,13.67910397]
[1736799673873,1.5721,177.85,177.74,13.67910397]
[1736799674078,65.32188227,177.91,177.8,13.67910397]
[1736799674380,65.32188227,177.91,177.75,110.25910397]
[1736799674381,16.92160397,177.94,177.83,13.67910397]
[1736799674576,2.8116,177.93,177.89,2.8121]
[1736799675876,3.2425,177.94,177.9,2.812]
[1736799676378,1.5888,177.94,177.9,2.812]
[1736799676582,2.8113,177.95,177.9,2.812]
[1736799677772,1.6396,177.96,177.84,9.5922]
[1736799677773,13.67910397,177.94,177.84,9.5922]
[1736799677979,13.67910397,177.88,177.78,13.94413132]
[1736799678484,2.8128,177.86,177.81,2.8133]
[1736799678778,3.1652,177.9,177.78,13.94413132]
[1736799678988,3.1652,177.9,177.78,6.2]
[1736799679584,2.8127,177.87,177.83,2.8132]
[1736799679789,21.87232479,177.88,177.78,6.2]
[1736799680585,3.1652,177.9,177.78,6.2]
[1736799680988,3.1652,177.9,177.78,28.07232479]
[1736799681691,5.9774,177.9,177.85,2.8128]
[1736799681886,21.87232479,177.94,177.81,21.87232479]
[1736799682891,2.8119,177.91,177.86,2.8126]
[1736799683684,3.4357,177.95,177.85,6.2]
[1736799683885,1.7157,177.95,177.85,6.2]
[1736799684090,21.87232479,178.0,177.86,3.1732]
[1736799684391,2.8113,177.96,177.91,2.8118]
[1736799686698,2.8113,177.96,177.86,3.1732]
[1736799686699,2.8102,178.02,177.97,2.8108]
[1736799686897,4.9979,178.08,177.96,6.2]
[1736799688190,2.8101,178.03,177.98,2.8107]
[1736799688595,2.8101,178.03,177.96,6.2]
[1736799688790,2.8101,178.03,177.98,2.8108]
[1736799689598,4.9979,178.08,177.96,6.2]
[1736799689995,21.87232479,178.06,177.96,6.2]
[1736799690300,2.8109,177.98,177.91,6.2]
[1736799690595,21.87232479,178.03,177.91,6.2]
[1736799690794,2.8112,177.96,177.91,9.0118]
[1736799690991,21.87232479,178.0,177.91,9.0118]
[1736799691189,2.8116,177.93,177.91,6.2]
[1736799691395,4.9377,177.99,177.9,96.52]
[1736799692795,2.8114,177.95,177.91,2.8119]
[1736799693393,4.9377,177.99,177.9,96.52]
[1736799693598,21.87232479,177.97,177.77,30.97652528]
[1736799693901,21.87232479,177.94,177.78,9.5188]
[1736799694104,2.8125,177.88,177.83,2.813]
[1736799694802,21.87232479,177.94,177.78,9.5188]
[1736799695101,21.87232479,177.94,177.8,21.87232479]
[1736799695497,2.8124,177.89,177.84,2.813]
[1736799695802,21.87232479,177.94,177.8,21.87232479]
[1736799696004,2.8125,177.88,177.83,2.8131]
[1736799697092,2.8126,177.87,177.83,2.8131]
[1736799697294,21.87232479,177.94,177.8,6.2]
[1736799697900,2.8128,177.86,177.82,2.8133]
[1736799699907,2.8126,177.87,177.82,2.8133]
[1736799700298,21.87232479,177.94,177.82,2.8133]
[1736799700803,21.87232479,177.94,177.83,2.8132]
[1736799701203,21.87232479,177.94,177.8,6.2]
[1736799701614,21.87232479,177.94,177.83,2.8132]
[1736799701908,2.8125,177.88,177.8,6.2]
[1736799702201,21.87232479,177.94,177.8,6.2]
[1736799702402,21.87232479,177.97,177.8,6.2]
[1736799702605,21.87232479,177.97,177.87,2.8125]
[1736799703001,21.87232479,177.97,177.8,28.07232479]
[1736799703404,2.8124,177.89,177.82,13.66326205]
[1736799703605,13.66326205,177.94,177.82,13.66326205]
[1736799704007,13.66326205,177.97,177.85,13.66326205]
[1736799704405,2.8112,177.96,177.92,2.8117]
[1736799704604,4.9377,177.99,177.89,6.2]
[1736799704902,4.9377,177.99,177.88,2.8123]
[1736799704903,2.8119,177.92,177.88,2.8123]
[1736799705211,13.66326205,177.94,177.81,1.6134]
[1736799705404,6.2,177.98,177.81,1.6134]
[1736799705405,13.66326205,177.91,177.81,1.6134]
[1736799705609,1.716,177.9,177.83,2.8132]
[1736799705811,1.716,177.9,177.81,1.6134]
[1736799706111,2.8122,177.9,177.86,2.8127]
[1736799706509,15.37926205,177.97,177.83,13.66326205]
[1736799706708,2.8119,177.91,177.87,2.8125]
[1736799706906,2.8119,177.91,177.83,13.66326205]
[1736799707405,15.37926205,177.97,177.83,13.66326205]
[1736799707608,2.8118,177.92,177.83,13.66326205]
[1736799707807,15.37926205,177.97,177.86,13.66326205]
[1736799708012,1.716,177.97,177.89,13.66326205]
[1736799708311,1.6284,177.99,177.94,2.8114]
[1736799708508,1.6284,177.99,177.92,13.66326205]
[1736799708711,2.8108,177.98,177.92,13.66326205]
[1736799710202,2.8108,177.98,177.94,2.8113]
[1736799710606,13.66326205,178.03,177.96,2.811]
[1736799710812,13.66326205,178.03,177.94,6.2]
[1736799711405,3.2752,178.04,177.94,6.2]
[1736799711611,3.2752,178.04,177.95,13.66326205]
[1736799711816,1.557,178.04,177.95,13.66326205]
[1736799712511,1.557,178.04,177.97,2.8109]
[1736799712706,1.557,178.04,177.95,13.66326205]
[1736799713308,18.14176205,178.06,177.95,13.66326205]
[1736799713505,1.6689,178.06,177.95,13.66326205]
[1736799714010,2.8098,178.05,178.0,2.8103]
[1736799715415,13.66326205,178.03,177.93,6.2]
[1736799716011,13.66326205,178.03,177.95,2.8112]
[1736799716012,2.8106,178.0,177.95,2.8112]
[1736799718117,2.8106,178.0,177.96,2.8111]
[1736799720318,2.8107,177.99,177.95,2.8112]
[1736799720621,1.6445,178.02,177.93,6.2]
[1736799721523,2.8106,178.0,177.96,2.811]
[1736799721821,13.66326205,178.03,177.92,6.2]
[1736799721822,13.66326205,178.03,177.94,13.66326205]
[1736799722008,15.33216205,178.06,177.94,13.66326205]
[1736799722417,2.8103,178.02,177.98,2.8107]
[1736799723011,15.33216205,178.06,177.94,13.66326205]
[1736799723210,2.8099,178.04,177.94,13.66326205]
[1736799723820,15.33216205,178.06,177.94,13.66326205]
[1736799724024,2.8102,178.02,177.94,13.66326205]
[1736799724212,15.33216205,178.06,177.94,13.66326205]
[1736799724418,2.8106,178.0,177.92,6.2]
[1736799724821,13.66326205,178.03,177.92,6.2]
[1736799725118,2.8111,177.97,177.93,2.8116]
[1736799725313,1.6689,178.06,177.94,13.66326205]
[1736799725515,7.1794148,178.13,178.03,13.66326205]
[1736799725716,7.1794148,178.13,178.06,13.66326205]
[1736799725918,7.1794148,178.13,178.07,6.2]
[1736799726224,13.66326205,178.14,178.05,3.2345]
[1736799726525,13.66326205,178.14,178.04,96.46]
[1736799727619,2.8089,178.11,178.05,2.8096]
[1736799727826,13.66326205,178.11,178.04,96.46]
[1736799728321,2.8094,178.08,178.04,96.46]
[1736799728718,2.8094,178.07,178.04,96.46]
[1736799728921,13.66326205,178.08,177.98,13.66326205]
[1736799729122,13.66326205,178.08,177.98,6.2]
[1736799729417,2.8099,178.04,178.0,2.8105]
[1736799729626,13.66326205,178.05,177.98,6.2]
[1736799729816,13.66326205,178.05,177.95,1.6419]
[1736799730122,13.66326205,178.02,177.93,105.98753859]
[1736799730324,13.66326205,178.02,177.94,2.8113]
[1736799730725,3.1409,178.09,177.93,119.65080064]
[1736799730928,13.66326205,178.08,177.96,13.66326205]
[1736799731222,3.1409,178.09,177.99,13.66326205]
[1736799731423,1.6032,178.1,178.0,6.2]
[1736799731625,1.6032,178.1,178.01,7.8355]
[1736799732017,21.8162992,178.14,178.01,7.8355]
[1736799733124,1.6763,178.15,178.01,29.6517992]
[1736799733425,2.8084,178.13,178.01,29.6517992]
[1736799733821,2.8084,178.13,178.07,2.8092]
[1736799734218,2.8089,178.11,178.01,29.6517992]
[1736799734419,2.8089,178.11,178.07,2.8093]
[1736799734718,1.6763,178.15,178.01,29.6517992]
[1736799735927,2.8083,178.14,178.09,2.8089]
[1736799736124,65.19199317,178.24,178.08,6.2]
[1736799736430,5.82632511,178.23,178.09,6.2]
[1736799736719,4.8613,178.23,178.1,23.5100992]
[1736799737126,4.8613,178.23,178.18,2.8076]
[1736799737127,7.6682,178.23,178.18,2.8076]
[1736799737716,7.6682,178.23,178.16,6.2]
[1736799737717,2.8074,178.2,178.16,6.2]
[1736799738115,1.6772,178.23,178.16,6.2]
[1736799738721,2.8072,178.21,178.16,9.0078]
[1736799738918,1.6772,178.23,178.16,9.0078]
[1736799739120,1.6772,178.23,178.16,6.2]
[1736799739521,2.8072,178.21,178.16,6.2]
[1736799739726,1.6772,178.23,178.16,6.2]
[1736799740123,2.8077,178.18,178.16,6.2]
[1736799740434,1.6772,178.23,178.12,2.8086]
[1736799740627,2.8077,178.18,178.11,6.2]
[1736799741022,1.6772,178.23,178.13,2.8083]
[1736799741428,2.8073,178.2,178.13,2.8083]
[1736799741633,1.6772,178.23,178.13,2.8083]
[1736799742135,21.8162992,178.21,178.11,6.2]
[1736799742533,1.6772,178.23,178.11,6.2]
[1736799742729,1.6772,178.23,178.13,2.8084]
[1736799744434,2.808,178.16,178.12,2.8086]
[1736799744634,1.6772,178.23,178.11,6.2]
[1736799745539,2.8072,178.22,178.11,6.2]
[1736799745738,1.6772,178.23,178.17,2.8077]
[1736799745933,1.6772,178.23,178.11,6.2]
[1736799746139,2.8072,178.21,178.11,6.2]
[1736799746340,1.6772,178.23,178.13,21.8162992]
[1736799746538,2.8072,178.22,178.18,2.8076]
[1736799746737,1.6772,178.23,178.18,2.8076]
[1736799747938,1.6772,178.23,178.13,21.8162992]
[1736799748139,2.8073,178.21,178.16,2.808]
[1736799748934,1.6772,178.23,178.11,6.2]
[1736799749439,1.6772,178.23,178.16,2.8079]
[1736799749636,1.6772,178.23,178.11,6.2]
[1736799749932,2.8075,178.19,178.11,6.2]
[1736799750132,1.6772,178.23,178.11,6.2]
[1736799750332,21.8162992,178.21,178.08,98.0976]
[1736799750831,21.8162992,178.21,178.08,104.2776]
[1736799751137,1.6772,178.23,178.11,21.8162992]
[1736799752138,21.8162992,178.21,178.08,119.9138992]
[1736799752340,21.8162992,178.21,178.08,98.0976]
[1736799752732,21.8162992,178.21,178.13,2.8084]
[1736799752942,21.8162992,178.21,178.08,119.9138992]
[1736799753337,21.8162992,178.21,178.08,98.0976]
[1736799753937,21.8162992,178.18,178.05,1.7075]
[1736799754236,21.8162992,178.15,178.02,6.18]
[1736799754437,21.8162992,178.12,178.0,1.6182]
[1736799754637,21.8162992,178.09,177.99,32.69802528]
[1736799755139,2.8098,178.05,178.0,2.8103]
[1736799755333,21.8162992,178.09,177.99,32.69802528]
[1736799755746,21.8162992,178.09,177.96,6.18]
[1736799755936,3.1435,178.08,177.95,1.6182]
[1736799756134,21.8162992,178.06,177.95,1.6182]
[1736799756334,2.8104,178.01,177.96,2.8111]
[1736799756540,1.6666,178.05,177.96,21.8162992]
[1736799756734,3.1435,178.08,177.96,21.8162992]
[1736799756935,1.5801,178.08,177.96,21.8162992]
[1736799757443,1.6666,178.1,177.96,21.8162992]
[1736799757636,2.8094,178.07,178.03,2.81]
[1736799757835,1.6666,178.1,178.0,6.2]
[1736799758033,2.8097,178.06,178.01,2.8103]
[1736799758340,1.6666,178.1,178.0,6.2]
[1736799759443,2.8094,178.07,178.0,2.8105]
[1736799759636,21.8162992,178.08,177.95,7.8182]
[1736799760037,2.8105,178.01,177.95,7.8182]
[1736799760345,21.8162992,178.08,177.95,7.8182]
[1736799760540,2.8099,178.04,177.98,2.8107]
[1736799760747,21.8162992,178.08,177.95,7.8182]
[1736799761638,2.81,178.04,177.99,2.8105]
[1736799761839,21.8162992,178.08,177.99,2.8105]
[1736799762042,2.81,178.03,177.99,2.8105]
[1736799762745,1.6666,178.1,177.95,7.8182]
[1736799762946,2.8098,178.05,178.0,2.8104]
[1736799763344,2.8095,178.07,177.96,21.8162992]
[1736799763538,1.5801,178.13,178.02,21.8162992]
[1736799763743,1.6445,178.15,178.03,9.5528]
[1736799763946,1.6445,178.15,178.05,21.8162992]
[1736799764445,2.8083,178.14,178.05,21.8162992]
[1736799764643,1.6445,178.15,178.05,21.8162992]
[1736799765048,1.6291,178.19,178.05,21.8162992]
[1736799765249,1.6297,178.18,178.05,21.8162992]
[1736799765450,2.8086,178.12,178.08,2.8092]
[1736799765649,1.6297,178.18,178.05,21.8162992]
[1736799767344,2.808,178.16,178.11,2.8086]
[1736799767740,1.6297,178.18,178.05,21.8162992]
[1736799767958,1.6333,178.23,178.08,21.8162992]
[1736799768245,1.6333,178.23,178.12,21.8162992]
[1736799768453,1.5912,178.22,178.13,6.2]
[1736799768645,2.8075,178.19,178.14,2.8081]
[1736799768847,2.8075,178.19,178.13,6.2]
[1736799769754,2.8078,178.18,178.13,6.2]
[1736799769948,1.5912,178.22,178.13,6.2]
[1736799770552,2.8078,178.17,178.13,9.0084]
[1736799770852,2.8078,178.17,178.13,6.2]
[1736799772154,2.8078,178.17,178.13,9.0084]
[1736799772349,2.8078,178.17,178.13,2.8084]
[1736799773048,2.8078,178.17,178.09,21.8162992]
[1736799773049,1.5912,178.22,178.09,21.8162992]
[1736799773349,23.5213992,178.21,178.1,6.18]
[1736799773852,2.8081,178.16,178.1,6.18]
[1736799774250,2.8081,178.16,178.12,2.8085]
[1736799774554,2.8078,178.18,178.1,6.18]
[1736799774856,1.5912,178.22,178.1,6.18]
[1736799775050,2.8069,178.23,178.12,21.8162992]
[1736799775251,1.7061,178.26,178.12,21.8162992]
[1736799775449,1.6738,178.25,178.17,2.8077]
[1736799775754,2.8072,178.22,178.17,2.8077]
[1736799775954,2.8072,178.22,178.18,2.8076]
[1736799776655,2.8069,178.23,178.19,2.8075]
[1736799777949,2.8071,178.22,178.19,2.8075]
[1736799779760,2.8071,178.22,178.18,2.8076]
[1736799780257,2.8075,178.19,178.16,2.8079]
[1736799780458,2.8075,178.19,178.13,6.18]
[1736799780656,1.6738,178.25,178.13,6.18]
[1736799780858,2.8069,178.23,178.19,2.8074]
[1736799781456,2.8073,178.21,178.12,21.8162992]
[1736799781653,1.6738,178.25,178.13,6.18]
[1736799782165,21.8162992,178.21,178.08,6.18]
[1736799782351,1.6819,178.2,178.06,119.9052992]
[1736799782558,1.6819,178.2,178.07,6.18]
[1736799783450,2.808,178.17,178.09,2.8089]
[1736799783755,1.6819,178.2,178.07,6.18]
[1736799783957,1.6819,178.2,178.06,104.269]
[1736799784663,2.8087,178.12,178.08,2.8091]
[1736799784862,1.6819,178.2,178.08,2.8091]
[1736799785063,2.8089,178.11,178.07,2.8093]
[1736799785260,21.8162992,178.18,178.06,96.4]
[1736799785466,4.14908891,178.17,178.06,96.4]
[1736799785760,0.96518891,178.16,178.06,96.4]
[1736799786067,0.96518891,178.16,178.0,3.16]
[1736799786068,21.8162992,178.15,178.0,24.9762992]
[1736799786365,2.81,178.03,177.98,2.8108]
[1736799786767,21.8162992,178.09,177.97,6.18]
[1736799786965,3.1402,178.08,177.97,6.18]
[1736799788159,2.8101,178.03,177.98,2.8108]
[1736799788762,21.8162992,178.06,177.95,97.9243]
[1736799788956,21.8162992,178.06,177.91,6.18]
[1736799789266,2.8114,177.95,177.89,2.8121]
[1736799789459,21.8162992,178.0,177.85,11.03443132]
[1736799789662,3.2768,177.99,177.85,11.03443132]
[1736799790358,3.2768,177.99,177.85,13.84723132]
[1736799790566,21.8162992,177.97,177.84,96.4]
[1736799790766,0.96628639,177.96,177.84,96.4]
[1736799791066,21.8162992,177.91,177.79,1.7133]
[1736799791261,3.3652,177.9,177.76,52.79282448]
[1736799791464,2.8134,177.82,177.76,2.8142]
[1736799791967,21.8162992,177.88,177.74,6.18]
[1736799792168,2.8135,177.81,177.74,6.18]
[1736799792371,21.8162992,177.88,177.74,6.18]
[1736799792761,2.8135,177.81,177.74,6.18]
[1736799793369,21.8162992,177.85,177.73,3.4074]
[1736799793568,6.2,177.84,177.72,96.4]
[1736799794272,21.8162992,177.82,177.72,96.4]
[1736799794466,2.8146,177.74,177.72,96.4]
[1736799794772,21.8162992,177.79,177.67,3.3314]
[1736799795172,2.8148,177.74,177.67,6.1471]
[1736799795666,2.8144,177.76,177.7,2.8152]
[1736799795868,1.581,177.8,177.69,21.8162992]
[1736799796069,1.581,177.8,177.67,3.3314]
[1736799796264,2.8144,177.76,177.68,2.8154]
[1736799796463,1.581,177.8,177.68,2.8154]
[1736799796867,2.8144,177.76,177.7,2.8152]
[1736799797065,1.581,177.8,177.7,2.8152]
[1736799797374,2.8141,177.78,177.7,2.8151]
[1736799797572,2.8141,177.78,177.67,3.3314]
[1736799798380,2.8141,177.78,177.72,2.8149]
[1736799798680,21.8162992,177.87,177.72,28.0162992]
[1736799798879,3.358,177.88,177.72,28.0162992]
[1736799800080,2.813,177.85,177.79,2.8138]
[1736799800282,3.358,177.88,177.75,21.8162992]
[1736799801982,21.8162992,177.91,177.75,21.8162992]
[1736799802174,23.3986992,177.91,177.75,21.8162992]
[1736799802376,2.8138,177.8,177.74,2.8145]
[1736799802684,21.8162992,177.86,177.72,6.2]
[1736799802884,2.8139,177.79,177.73,2.8147]
[1736799803084,9.5797,177.85,177.72,6.2]
[1736799803481,2.8138,177.79,177.73,2.8147]
[1736799803780,9.5797,177.85,177.72,28.0162992]
[1736799804180,2.8138,177.8,177.75,2.8144]
[1736799804578,9.5797,177.85,177.72,28.0162992]
[1736799804778,9.5797,177.85,177.72,6.2]
[1736799805479,2.814,177.78,177.73,2.8148]
[1736799805786,9.5797,177.85,177.72,6.2]
[1736799806084,21.8162992,177.83,177.72,6.2]
[1736799806282,21.8162992,177.8,177.67,3.3314]
[1736799806676,21.8162992,177.77,177.67,1.6117]
[1736799806983,21.8162992,177.77,177.63,1.7218]
[1736799807184,21.8162992,177.74,177.62,6.2]
[1736799807384,1.6695,177.73,177.62,6.2]
[1736799807580,21.8162992,177.71,177.61,96.48]
[1736799807775,2.8161,177.65,177.61,96.48]
[1736799808285,21.8162992,177.71,177.61,96.48]
[1736799808781,21.8162992,177.71,177.61,99.2966]
[1736799808981,21.8162992,177.71,177.61,96.48]
[1736799809178,1.6695,177.73,177.61,96.48]
[1736799809785,2.8162,177.64,177.61,96.48]
[1736799810085,21.8162992,177.71,177.61,96.48]
[1736799810285,2.8156,177.68,177.61,96.48]
[1736799810485,21.8162992,177.71,177.62,2.8164]
[1736799811284,21.8162992,177.71,177.61,96.48]
[1736799811482,21.8162992,177.71,177.59,2.8168]
[1736799811682,28.0162992,177.71,177.59,2.8168]
[1736799811986,21.8162992,177.68,177.58,1.5872]
[1736799812186,6.2,177.71,177.58,1.5872]
[1736799812187,28.0162992,177.71,177.58,1.5872]
[1736799812381,2.8157,177.68,177.62,2.8165]
[1736799812587,1.6695,177.73,177.58,1.5872]
[1736799812886,2.8149,177.72,177.67,2.8156]
[1736799813089,1.6695,177.73,177.6,21.8162992]
[1736799813588,2.8156,177.68,177.6,21.8162992]
[1736799814488,3.4189,177.76,177.63,21.8162992]
[1736799814689,3.4189,177.76,177.64,7.8712]
[1736799814992,21.8162992,177.75,177.64,7.8712]
[1736799815188,21.8162992,177.75,177.64,6.2]
[1736799815488,2.8154,177.69,177.64,9.016]
[1736799815683,21.8162992,177.72,177.58,1.5872]
[1736799815885,21.8162992,177.66,177.52,3.3102]
[1736799816085,21.8162992,177.66,177.52,11.0825]
[1736799816282,2.8168,177.61,177.56,2.8173]
[1736799816485,3.153,177.65,177.52,11.0825]
[1736799816889,2.8169,177.6,177.56,2.8174]
[1736799817588,3.153,177.65,177.56,2.8174]
[1736799817791,2.8166,177.62,177.57,2.8173]
[1736799818191,3.153,177.65,177.53,6.2]
[1736799818393,2.817,177.59,177.54,2.8176]
[1736799818695,4.8038,177.65,177.53,6.2]
[1736799819593,2.8164,177.63,177.58,2.817]
[1736799819793,2.8164,177.63,177.53,6.2]
[1736799820883,2.8164,177.63,177.58,2.817]
[1736799821484,3.153,177.65,177.56,2.8173]
[1736799821694,3.153,177.65,177.53,6.2]
[1736799822691,2.8169,177.6,177.55,2.8175]
[1736799822996,1.58,177.65,177.53,6.2]
[1736799823385,21.8162992,177.69,177.54,21.8162992]
[1736799823994,2.8162,177.64,177.54,21.8162992]
[1736799824199,21.8162992,177.69,177.54,21.8162992]
[1736799824696,2.8161,177.65,177.6,2.8167]
[1736799825093,2.8161,177.65,177.54,21.8162992]
[1736799825299,2.8161,177.65,177.53,6.2]
[1736799825300,1.7216,177.7,177.62,2.8164]
[1736799825594,1.7216,177.7,177.57,21.8162992]
[1736799825795,2.8172,177.58,177.54,2.8178]
[1736799825997,21.8162992,177.63,177.52,33.59376817]
[1736799826197,21.8162992,177.6,177.52,30.35026817]
[1736799826398,3.2848,177.62,177.48,151.13536628]
[1736799826399,21.8162992,177.57,177.49,2.8185]
[1736799827101,21.8162992,177.57,177.48,30.35026817]
[1736799827595,2.8183,177.51,177.47,2.8188]
[1736799827997,21.8162992,177.57,177.46,1.5782]
[1736799828296,2.8183,177.51,177.47,2.8187]
[1736799831597,2.8179,177.54,177.49,2.8185]
[1736799832100,21.8162992,177.6,177.49,2.8185]
[1736799832395,21.8162992,177.57,177.49,2.8185]
[1736799832901,2.818,177.53,177.49,2.8185]
[1736799833102,21.8162992,177.6,177.46,1.5782]
[1736799833501,2.8175,177.56,177.52,2.8179]
[1736799833805,21.8162992,177.6,177.46,1.5782]
[1736799834197,21.8162992,177.57,177.48,2.8187]
[1736799834598,21.8162992,177.57,177.46,1.5782]
[1736799835201,2.8187,177.49,177.46,1.5782]
[1736799835699,2.8188,177.48,177.45,2.8192]
[1736799836597,2.8186,177.49,177.42,6.2]
[1736799836998,2.8186,177.49,177.41,3.2351]
[1736799837205,2.8186,177.49,177.41,9.4351]
[1736799837406,2.8186,177.49,177.45,2.8191]
[1736799837602,21.8162992,177.54,177.41,9.4351]
[1736799837603,21.8162992,177.54,177.41,1.6139]